[Event "*** Titled Tuesday Blitz"]
[Site "Chess.com"]
[Date "2020.04.28"]
[Round "4"]
[White "andy_rekt"]
[Black "atalz0"]
[Result "0-1"]
[WhiteElo "2209"]
[BlackElo "2426"]
[TimeControl "180+1"]
[EndTime "10:40:41 PDT"]
[Termination "atalz0 won by resignation"]

1. d4 {[%clk 0:03:00.9]} 1... d5 {[%clk 0:02:59.4]} 2. c4 {[%clk 0:03:01]} 2...
e6 {[%clk 0:02:59.6]} 3. Nc3 {[%clk 0:03:01]} 3... Bb4 {[%clk 0:02:59.7]} 4. Nf3
{[%clk 0:02:59.6]} 4... dxc4 {[%clk 0:02:59.4]} 5. e3 {[%clk 0:02:58.4]} 5... b5
{[%clk 0:02:56.8]} 6. a3 {[%clk 0:02:57.3]} 6... Bxc3+ {[%clk 0:02:56.3]} 7.
bxc3 {[%clk 0:02:56.5]} 7... Nf6 {[%clk 0:02:54.7]} 8. a4 {[%clk 0:02:54.8]}
8... c6 {[%clk 0:02:54.8]} 9. Ba3 {[%clk 0:02:54.3]} 9... a5 {[%clk 0:02:33.2]}
10. Ne5 {[%clk 0:02:44.8]} 10... Bb7 {[%clk 0:02:28.8]} 11. Rb1 {[%clk
0:02:38.6]} 11... Nd5 {[%clk 0:01:57.6]} 12. Qf3 {[%clk 0:02:22.1]} 12... Qf6
{[%clk 0:01:25.2]} 13. axb5 {[%clk 0:01:58.4]} 13... Nxc3 {[%clk 0:01:17.1]} 14.
bxc6 {[%clk 0:01:58.1]} 14... Nxb1 {[%clk 0:01:03.9]} 15. cxb7 {[%clk
0:01:57.4]} 15... Qxf3 {[%clk 0:01:01.6]} 16. gxf3 {[%clk 0:01:49]} 16... Ra7
{[%clk 0:01:01]} 17. Bc5 {[%clk 0:01:42.5]} 17... Rxb7 {[%clk 0:00:55.6]} 18.
Bxc4 {[%clk 0:01:42.8]} 18... Nd7 {[%clk 0:00:41.8]} 19. Nxd7 {[%clk 0:01:40.5]}
19... Kxd7 {[%clk 0:00:42.7]} 20. Ba6 {[%clk 0:01:07.6]} 20... Rb2 {[%clk
0:00:33.8]} 21. O-O {[%clk 0:01:06]} 21... Nd2 {[%clk 0:00:24.4]} 22. Rd1 {[%clk
0:01:00.9]} 22... Nxf3+ {[%clk 0:00:20.8]} 23. Kg2 {[%clk 0:01:00.6]} 23... Nd2
{[%clk 0:00:17.7]} 24. Ba3 {[%clk 0:00:45.9]} 24... Ra2 {[%clk 0:00:17.7]} 25.
Bc5 {[%clk 0:00:28.8]} 25... Rb8 {[%clk 0:00:17]} 26. Kg3 {[%clk 0:00:28.7]}
26... Ne4+ {[%clk 0:00:16.5]} 27. Kf4 {[%clk 0:00:28.6]} 27... Nxf2 {[%clk
0:00:15.6]} 28. Bc4 {[%clk 0:00:24.9]} 28... Nxd1 {[%clk 0:00:13.7]} 29. Bxa2
{[%clk 0:00:24]} 29... Rb2 {[%clk 0:00:11.6]} 30. Bc4 {[%clk 0:00:23.2]} 30...
Rxh2 {[%clk 0:00:11.2]} 31. Bb5+ {[%clk 0:00:20.5]} 31... Kc7 {[%clk 0:00:11.4]}
32. e4 {[%clk 0:00:17.6]} 32... Nc3 {[%clk 0:00:11.3]} 33. Bc4 {[%clk
0:00:15.5]} 33... Rh4+ {[%clk 0:00:10.2]} 34. Kf3 {[%clk 0:00:15.2]} 34... Nxe4
{[%clk 0:00:09.3]} 35. Bf8 {[%clk 0:00:13.9]} 35... Nd2+ {[%clk 0:00:09.1]} 0-1

[Event "*** Titled Tuesday Blitz"]
[Site "Chess.com"]
[Date "2020.04.28"]
[Round "4"]
[White "Malysch"]
[Black "Larisa004"]
[Result "1-0"]
[WhiteElo "2409"]
[BlackElo "2099"]
[TimeControl "180+1"]
[EndTime "10:40:41 PDT"]
[Termination "Malysch won on time"]

1. d4 {[%clk 0:03:00.9]} 1... Nf6 {[%clk 0:02:59.1]} 2. c4 {[%clk 0:03:00.5]}
2... c5 {[%clk 0:02:57.3]} 3. d5 {[%clk 0:02:59.8]} 3... b5 {[%clk 0:02:49.7]}
4. Nf3 {[%clk 0:02:59.3]} 4... d6 {[%clk 0:02:46.6]} 5. Qc2 {[%clk 0:02:56.8]}
5... b4 {[%clk 0:02:44.6]} 6. e4 {[%clk 0:02:54.4]} 6... Nbd7 {[%clk 0:02:43.6]}
7. a3 {[%clk 0:02:51.4]} 7... g6 {[%clk 0:02:26.9]} 8. Bd3 {[%clk 0:02:47.7]}
8... Bg7 {[%clk 0:02:25.1]} 9. O-O {[%clk 0:02:47.2]} 9... O-O {[%clk
0:02:24.8]} 10. h3 {[%clk 0:02:46]} 10... Rb8 {[%clk 0:02:22.7]} 11. Re1 {[%clk
0:02:34.1]} 11... a5 {[%clk 0:02:19.4]} 12. e5 {[%clk 0:02:20.4]} 12... Nxe5
{[%clk 0:02:11.1]} 13. Nxe5 {[%clk 0:02:21.3]} 13... dxe5 {[%clk 0:02:09.7]} 14.
Rxe5 {[%clk 0:02:20.1]} 14... Nd7 {[%clk 0:02:03.4]} 15. Re1 {[%clk 0:02:15.8]}
15... Ne5 {[%clk 0:02:02]} 16. Bf4 {[%clk 0:02:02.9]} 16... Nxd3 {[%clk
0:01:57.1]} 17. Qxd3 {[%clk 0:01:59.8]} 17... Rb6 {[%clk 0:01:53.3]} 18. axb4
{[%clk 0:01:44.9]} 18... Rxb4 {[%clk 0:01:43.2]} 19. Nc3 {[%clk 0:01:36.8]}
19... Rxb2 {[%clk 0:01:38.1]} 20. Na4 {[%clk 0:01:11.3]} 20... Bf5 {[%clk
0:01:23.1]} 21. Qa3 {[%clk 0:00:50.8]} 21... Rb4 {[%clk 0:01:01.6]} 22. Rac1
{[%clk 0:00:49.9]} 22... Bd4 {[%clk 0:00:59.8]} 23. Bd2 {[%clk 0:00:44.5]} 23...
Bd7 {[%clk 0:00:29.5]} 24. Bxb4 {[%clk 0:00:43]} 24... axb4 {[%clk 0:00:27.9]}
25. Qb3 {[%clk 0:00:41.9]} 25... e6 {[%clk 0:00:27.1]} 26. Nb2 {[%clk 0:00:39]}
26... Qf6 {[%clk 0:00:21.9]} 27. Nd3 {[%clk 0:00:36.3]} 27... Ra8 {[%clk
0:00:20.1]} 28. Re2 {[%clk 0:00:24.9]} 28... Ra3 {[%clk 0:00:19.8]} 29. Qd1
{[%clk 0:00:24.6]} 29... exd5 {[%clk 0:00:15.3]} 30. cxd5 {[%clk 0:00:24.6]}
30... Bb5 {[%clk 0:00:04.4]} 31. Rd2 {[%clk 0:00:12.8]} 31... Bxd3 {[%clk
0:00:04.4]} 32. Rxd3 {[%clk 0:00:12.9]} 32... Qxf2+ {[%clk 0:00:04.5]} 33. Kh1
{[%clk 0:00:13.3]} 33... Rxd3 {[%clk 0:00:04.5]} 34. Qxd3 {[%clk 0:00:14.2]}
34... Qf6 {[%clk 0:00:03.5]} 35. Rf1 {[%clk 0:00:12.7]} 35... Qd6 {[%clk
0:00:03.2]} 36. Qf3 {[%clk 0:00:12.7]} 36... f5 {[%clk 0:00:02.4]} 37. Qb3
{[%clk 0:00:11.2]} 37... Kg7 {[%clk 0:00:02.5]} 38. Re1 {[%clk 0:00:11.1]} 38...
Qf4 {[%clk 0:00:02.3]} 39. Re7+ {[%clk 0:00:10.4]} 1-0

[Event "*** Titled Tuesday Blitz"]
[Site "Chess.com"]
[Date "2020.04.28"]
[Round "4"]
[White "Rsnr"]
[Black "hypert"]
[Result "1-0"]
[WhiteElo "2845"]
[BlackElo "2534"]
[TimeControl "180+1"]
[EndTime "10:40:42 PDT"]
[Termination "Rsnr won by resignation"]

1. d4 {[%clk 0:03:00.9]} 1... Nf6 {[%clk 0:02:57.6]} 2. c4 {[%clk 0:03:01.6]}
2... d6 {[%clk 0:02:58.1]} 3. Nf3 {[%clk 0:03:01.6]} 3... Nbd7 {[%clk
0:02:58.5]} 4. Nc3 {[%clk 0:03:01.4]} 4... e5 {[%clk 0:02:58.8]} 5. g3 {[%clk
0:03:02.1]} 5... g6 {[%clk 0:02:56.9]} 6. Bg2 {[%clk 0:03:02.3]} 6... Bg7 {[%clk
0:02:57.5]} 7. O-O {[%clk 0:03:03]} 7... O-O {[%clk 0:02:57.9]} 8. h3 {[%clk
0:03:03.7]} 8... exd4 {[%clk 0:02:57.6]} 9. Nxd4 {[%clk 0:03:04.6]} 9... Re8
{[%clk 0:02:58.4]} 10. e4 {[%clk 0:03:05.1]} 10... a6 {[%clk 0:02:56.7]} 11. Be3
{[%clk 0:03:04.8]} 11... Nc5 {[%clk 0:02:55.7]} 12. Qc2 {[%clk 0:03:03.8]} 12...
Bd7 {[%clk 0:02:53.3]} 13. b4 {[%clk 0:02:39.5]} 13... Ne6 {[%clk 0:02:49.1]}
14. Rad1 {[%clk 0:02:40.1]} 14... Qc8 {[%clk 0:02:40]} 15. Kh2 {[%clk
0:02:39.6]} 15... c5 {[%clk 0:02:15.8]} 16. Nxe6 {[%clk 0:02:36.3]} 16... Bxe6
{[%clk 0:02:16.7]} 17. bxc5 {[%clk 0:02:14.9]} 17... dxc5 {[%clk 0:01:32.6]} 18.
Na4 {[%clk 0:00:40.6]} 18... Nd7 {[%clk 0:01:29.2]} 19. f4 {[%clk 0:00:40.8]}
19... f5 {[%clk 0:01:21.7]} 20. e5 {[%clk 0:00:40.3]} 20... Qc7 {[%clk
0:01:12.1]} 21. Rd6 {[%clk 0:00:34.7]} 21... Rac8 {[%clk 0:00:49.3]} 22. Rb1
{[%clk 0:00:31.6]} 22... b6 {[%clk 0:00:39.6]} 23. Nxb6 {[%clk 0:00:30.4]} 23...
Nxb6 {[%clk 0:00:37.5]} 24. Rdxb6 {[%clk 0:00:27.5]} 24... Kh8 {[%clk
0:00:33.6]} 25. Bd5 {[%clk 0:00:23.5]} 25... Bxd5 {[%clk 0:00:26.4]} 26. cxd5
{[%clk 0:00:24.4]} 26... c4 {[%clk 0:00:27.3]} 27. d6 {[%clk 0:00:21.6]} 27...
Qd8 {[%clk 0:00:17.6]} 28. Rb7 {[%clk 0:00:19.9]} 28... Rg8 {[%clk 0:00:17.4]}
29. Bd4 {[%clk 0:00:19.7]} 29... Rc6 {[%clk 0:00:17.5]} 30. Qa4 {[%clk
0:00:14.1]} 30... Rc8 {[%clk 0:00:11.7]} 31. Rd7 {[%clk 0:00:06.9]} 31... Qe8
{[%clk 0:00:11.1]} 32. Rbb7 {[%clk 0:00:07.5]} 32... c3 {[%clk 0:00:10.4]} 33.
Rxg7 {[%clk 0:00:04.5]} 33... Rxg7 {[%clk 0:00:10.2]} 34. d7 {[%clk 0:00:04.5]}
34... c2 {[%clk 0:00:10.7]} 35. dxe8=Q+ {[%clk 0:00:04.4]} 1-0

[Event "*** Titled Tuesday Blitz"]
[Site "Chess.com"]
[Date "2020.04.28"]
[Round "4"]
[White "Hasangatin_Ramil"]
[Black "vinodbhagwat1976"]
[Result "1-0"]
[WhiteElo "2456"]
[BlackElo "2255"]
[TimeControl "180+1"]
[EndTime "10:40:42 PDT"]
[Termination "Hasangatin_Ramil won on time"]

1. e4 {[%clk 0:03:00.9]} 1... e5 {[%clk 0:02:59.6]} 2. Nf3 {[%clk 0:02:58.9]}
2... Nc6 {[%clk 0:02:59.7]} 3. Bb5 {[%clk 0:02:58.2]} 3... a6 {[%clk 0:02:58.8]}
4. Ba4 {[%clk 0:02:58.2]} 4... Nf6 {[%clk 0:02:59]} 5. Bxc6 {[%clk 0:02:57.9]}
5... dxc6 {[%clk 0:02:57.8]} 6. d3 {[%clk 0:02:58.7]} 6... Bd6 {[%clk
0:02:50.7]} 7. Bg5 {[%clk 0:02:58.8]} 7... O-O {[%clk 0:02:46.8]} 8. Nbd2 {[%clk
0:02:57.3]} 8... Bg4 {[%clk 0:02:45.7]} 9. h3 {[%clk 0:02:56.7]} 9... Bh5 {[%clk
0:02:45.3]} 10. g4 {[%clk 0:02:54.5]} 10... Bg6 {[%clk 0:02:44.8]} 11. Qe2
{[%clk 0:02:53.4]} 11... Qe7 {[%clk 0:02:17]} 12. Nh4 {[%clk 0:02:52.7]} 12...
Qe6 {[%clk 0:02:14.1]} 13. Nf5 {[%clk 0:02:52.3]} 13... Nd7 {[%clk 0:02:06.5]}
14. Nc4 {[%clk 0:02:46.6]} 14... f6 {[%clk 0:02:05.5]} 15. Bd2 {[%clk
0:02:43.2]} 15... Nc5 {[%clk 0:01:52.9]} 16. Be3 {[%clk 0:02:33.1]} 16... Rad8
{[%clk 0:01:47.1]} 17. h4 {[%clk 0:02:28.5]} 17... Qd7 {[%clk 0:01:23.6]} 18. h5
{[%clk 0:02:23.3]} 18... Bf7 {[%clk 0:01:23.1]} 19. Ncxd6 {[%clk 0:02:10.4]}
19... cxd6 {[%clk 0:01:21.5]} 20. g5 {[%clk 0:02:10.7]} 20... fxg5 {[%clk
0:01:15.2]} 21. Bxg5 {[%clk 0:02:11.6]} 21... Rde8 {[%clk 0:01:08.2]} 22. b3
{[%clk 0:01:59]} 22... Be6 {[%clk 0:00:49.9]} 23. Ne3 {[%clk 0:01:52.5]} 23...
d5 {[%clk 0:00:47.4]} 24. O-O-O {[%clk 0:01:50.5]} 24... d4 {[%clk 0:00:47.3]}
25. Nf5 {[%clk 0:01:50.2]} 25... Bxf5 {[%clk 0:00:44.3]} 26. exf5 {[%clk
0:01:51.1]} 26... Qxf5 {[%clk 0:00:44.1]} 27. Bh4 {[%clk 0:01:49.2]} 27... e4
{[%clk 0:00:41.7]} 28. dxe4 {[%clk 0:01:45]} 28... Qxe4 {[%clk 0:00:30.5]} 29.
Qc4+ {[%clk 0:01:42]} 29... Ne6 {[%clk 0:00:29.7]} 30. Kb1 {[%clk 0:01:18.2]}
30... b5 {[%clk 0:00:26.5]} 31. Qf1 {[%clk 0:01:16.4]} 31... Nf4 {[%clk
0:00:22.1]} 32. f3 {[%clk 0:01:10.1]} 32... Qf5 {[%clk 0:00:20.9]} 33. Rxd4
{[%clk 0:01:05]} 33... Nd5 {[%clk 0:00:19]} 34. Rd3 {[%clk 0:01:03.1]} 34... c5
{[%clk 0:00:17.6]} 35. Qd1 {[%clk 0:01:01]} 35... Ne3 {[%clk 0:00:16.7]} 36. Qd2
{[%clk 0:01:01.2]} 36... Qxf3 {[%clk 0:00:16.3]} 37. Re1 {[%clk 0:00:58]} 37...
Qg4 {[%clk 0:00:11.9]} 38. Bf2 {[%clk 0:00:35.5]} 38... Nf5 {[%clk 0:00:08.6]}
39. Bxc5 {[%clk 0:00:34.2]} 39... Rxe1+ {[%clk 0:00:07.4]} 40. Qxe1 {[%clk
0:00:35.1]} 40... Rc8 {[%clk 0:00:05.3]} 41. Qe6+ {[%clk 0:00:34.6]} 1-0

[Event "*** Titled Tuesday Blitz"]
[Site "Chess.com"]
[Date "2020.04.28"]
[Round "4"]
[White "Keks2017"]
[Black "quesfr"]
[Result "0-1"]
[WhiteElo "2410"]
[BlackElo "2225"]
[TimeControl "180+1"]
[EndTime "10:40:43 PDT"]
[Termination "quesfr won by resignation"]

1. e4 {[%clk 0:03:00]} 1... e6 {[%clk 0:02:59.7]} 2. d3 {[%clk 0:02:59.5]} 2...
d5 {[%clk 0:03:00]} 3. Nd2 {[%clk 0:02:59.6]} 3... c5 {[%clk 0:03:00.6]} 4. Ngf3
{[%clk 0:02:59.5]} 4... Nc6 {[%clk 0:03:01.1]} 5. g3 {[%clk 0:02:59.7]} 5... Bd6
{[%clk 0:03:01.7]} 6. Bg2 {[%clk 0:02:59.6]} 6... Nge7 {[%clk 0:03:02.4]} 7. O-O
{[%clk 0:02:59.6]} 7... O-O {[%clk 0:03:03.1]} 8. Re1 {[%clk 0:02:59.7]} 8...
Qc7 {[%clk 0:03:03.7]} 9. c3 {[%clk 0:02:57.6]} 9... Bd7 {[%clk 0:03:03.6]} 10.
a3 {[%clk 0:02:56.9]} 10... Rac8 {[%clk 0:03:01.4]} 11. Qe2 {[%clk 0:02:55.5]}
11... f6 {[%clk 0:03:01]} 12. b4 {[%clk 0:02:54.5]} 12... b6 {[%clk 0:02:31.4]}
13. Bb2 {[%clk 0:02:52.6]} 13... Kh8 {[%clk 0:02:02.2]} 14. Rac1 {[%clk
0:02:46.2]} 14... Rce8 {[%clk 0:01:53.9]} 15. Kh1 {[%clk 0:02:45.9]} 15... Qb8
{[%clk 0:01:53]} 16. Ng1 {[%clk 0:02:43.5]} 16... a5 {[%clk 0:01:49.2]} 17. b5
{[%clk 0:02:42.2]} 17... Nd8 {[%clk 0:01:46.2]} 18. a4 {[%clk 0:02:42]} 18...
Nf7 {[%clk 0:01:31.8]} 19. f4 {[%clk 0:02:41.5]} 19... Qc7 {[%clk 0:01:20.6]}
20. c4 {[%clk 0:02:39.3]} 20... d4 {[%clk 0:01:13.5]} 21. Ndf3 {[%clk
0:02:35.7]} 21... e5 {[%clk 0:01:12.3]} 22. f5 {[%clk 0:02:32.7]} 22... g6
{[%clk 0:01:07.5]} 23. fxg6 {[%clk 0:02:30.2]} 23... hxg6 {[%clk 0:01:07.1]} 24.
Nh4 {[%clk 0:02:28.5]} 24... Kg7 {[%clk 0:01:02.8]} 25. Bh3 {[%clk 0:02:25.6]}
25... Rh8 {[%clk 0:00:59.3]} 26. Bxd7 {[%clk 0:02:24.3]} 26... Qxd7 {[%clk
0:00:59.1]} 27. Rf1 {[%clk 0:02:23.3]} 27... Ref8 {[%clk 0:00:36.4]} 28. Rf2
{[%clk 0:02:22.4]} 28... Ng8 {[%clk 0:00:35.5]} 29. Rcf1 {[%clk 0:02:16.5]}
29... Be7 {[%clk 0:00:35]} 30. Bc1 {[%clk 0:02:12.3]} 30... Ngh6 {[%clk
0:00:29.2]} 31. Rg2 {[%clk 0:02:04.2]} 31... Qg4 {[%clk 0:00:28.5]} 32. Qe1
{[%clk 0:01:59.9]} 32... Ng8 {[%clk 0:00:19.7]} 33. Bd2 {[%clk 0:01:58]} 33...
Ng5 {[%clk 0:00:17.5]} 34. Bxa5 {[%clk 0:01:37.1]} 34... bxa5 {[%clk 0:00:14.3]}
35. Qxa5 {[%clk 0:01:36.7]} 35... Nh3 {[%clk 0:00:07.9]} 36. Nxh3 {[%clk
0:01:33.6]} 36... Qxh3 {[%clk 0:00:08.8]} 37. Qd2 {[%clk 0:01:25.7]} 37... Nh6
{[%clk 0:00:08.6]} 38. a5 {[%clk 0:01:12.7]} 38... Ng4 {[%clk 0:00:08.6]} 39.
Ra1 {[%clk 0:01:12.1]} 39... Ne3 {[%clk 0:00:07.1]} 40. Rgg1 {[%clk 0:01:11.2]}
40... f5 {[%clk 0:00:05.8]} 41. exf5 {[%clk 0:01:01.2]} 41... Bxh4 {[%clk
0:00:04.7]} 42. gxh4 {[%clk 0:01:01.1]} 42... Qf3+ {[%clk 0:00:04.3]} 43. Rg2
{[%clk 0:01:00.3]} 43... Rxh4 {[%clk 0:00:04.3]} 44. Kg1 {[%clk 0:00:54.6]}
44... Nxg2 {[%clk 0:00:03.3]} 45. Qxg2 {[%clk 0:00:54.3]} 45... Rg4 {[%clk
0:00:03]} 46. Ra2 {[%clk 0:00:50.9]} 46... Rxg2+ {[%clk 0:00:03.1]} 47. Rxg2
{[%clk 0:00:49.7]} 47... Rxf5 {[%clk 0:00:04]} 48. h4 {[%clk 0:00:49.3]} 48...
Qf1+ {[%clk 0:00:04.3]} 49. Kh2 {[%clk 0:00:49.5]} 49... Rf2 {[%clk 0:00:05.2]}
50. Rxf2 {[%clk 0:00:48]} 50... Qxf2+ {[%clk 0:00:06.1]} 51. Kh1 {[%clk
0:00:48.4]} 51... Kh6 {[%clk 0:00:05.4]} 52. a6 {[%clk 0:00:48.4]} 52... Kh5
{[%clk 0:00:05.9]} 53. a7 {[%clk 0:00:48.4]} 53... Qa2 {[%clk 0:00:05.9]} 54. b6
{[%clk 0:00:48.3]} 54... Kxh4 {[%clk 0:00:06.4]} 0-1

[Event "*** Titled Tuesday Blitz"]
[Site "Chess.com"]
[Date "2020.04.28"]
[Round "4"]
[White "murtas73"]
[Black "Xeniya2005"]
[Result "1-0"]
[WhiteElo "2587"]
[BlackElo "2260"]
[TimeControl "180+1"]
[EndTime "10:40:43 PDT"]
[Termination "murtas73 won on time"]

1. e4 {[%clk 0:03:00.9]} 1... c5 {[%clk 0:02:35.8]} 2. Nf3 {[%clk 0:02:58.2]}
2... Nc6 {[%clk 0:02:35.3]} 3. Nc3 {[%clk 0:02:55.4]} 3... e6 {[%clk 0:02:30.4]}
4. d4 {[%clk 0:02:54.7]} 4... cxd4 {[%clk 0:02:30.8]} 5. Nxd4 {[%clk 0:02:55.5]}
5... Nf6 {[%clk 0:02:31.5]} 6. Be2 {[%clk 0:02:54.3]} 6... Bb4 {[%clk 0:02:31]}
7. O-O {[%clk 0:02:54]} 7... O-O {[%clk 0:02:29.4]} 8. Bg5 {[%clk 0:02:50.1]}
8... h6 {[%clk 0:02:27.3]} 9. Bh4 {[%clk 0:02:49.9]} 9... Bxc3 {[%clk
0:02:19.2]} 10. Bxf6 {[%clk 0:02:45]} 10... Qxf6 {[%clk 0:02:16.9]} 11. bxc3
{[%clk 0:02:45.9]} 11... d5 {[%clk 0:02:13.6]} 12. exd5 {[%clk 0:02:45.2]} 12...
exd5 {[%clk 0:02:13.8]} 13. Bf3 {[%clk 0:02:45.7]} 13... Be6 {[%clk 0:02:13.4]}
14. Rb1 {[%clk 0:02:40]} 14... Rab8 {[%clk 0:02:06.9]} 15. Nxe6 {[%clk 0:02:36]}
15... fxe6 {[%clk 0:02:04.8]} 16. c4 {[%clk 0:02:36.9]} 16... d4 {[%clk
0:01:51.5]} 17. Qe2 {[%clk 0:02:32.8]} 17... Na5 {[%clk 0:01:37]} 18. Rfe1
{[%clk 0:02:31.3]} 18... Rfe8 {[%clk 0:01:29.4]} 19. Rb5 {[%clk 0:02:29.8]}
19... b6 {[%clk 0:01:20.7]} 20. Re5 {[%clk 0:02:29.3]} 20... Kf8 {[%clk
0:01:08.8]} 21. Bd5 {[%clk 0:02:22.7]} 21... Rbd8 {[%clk 0:00:53.1]} 22. g4
{[%clk 0:02:14.9]} 22... g6 {[%clk 0:00:48]} 23. Bxe6 {[%clk 0:02:07.5]} 23...
Kg7 {[%clk 0:00:42.9]} 24. Bd5 {[%clk 0:02:04.7]} 24... Rxe5 {[%clk 0:00:41.7]}
25. Qxe5 {[%clk 0:02:04.6]} 25... Qxe5 {[%clk 0:00:41.6]} 26. Rxe5 {[%clk
0:02:05.5]} 26... Rd7 {[%clk 0:00:40.7]} 27. f4 {[%clk 0:02:02.9]} 27... Rc7
{[%clk 0:00:34.6]} 28. Re4 {[%clk 0:01:58.3]} 28... Nxc4 {[%clk 0:00:33.9]} 29.
Rxd4 {[%clk 0:01:58.2]} 29... Ne3 {[%clk 0:00:33.8]} 30. Be4 {[%clk 0:01:55.5]}
30... Nxg4 {[%clk 0:00:17.8]} 31. Rd6 {[%clk 0:01:55.4]} 31... g5 {[%clk
0:00:17.6]} 32. fxg5 {[%clk 0:01:53.8]} 32... hxg5 {[%clk 0:00:18.3]} 33. Rg6+
{[%clk 0:01:54.2]} 33... Kf7 {[%clk 0:00:18.2]} 34. Rxg5 {[%clk 0:01:54.6]}
34... Ne3 {[%clk 0:00:18]} 35. Rh5 {[%clk 0:01:52.5]} 35... Ke8 {[%clk
0:00:14.1]} 36. Rh8+ {[%clk 0:01:51.3]} 36... Kd7 {[%clk 0:00:14.2]} 37. Rh7+
{[%clk 0:01:51.9]} 37... Kd6 {[%clk 0:00:14.6]} 38. Rxc7 {[%clk 0:01:51.3]}
38... Kxc7 {[%clk 0:00:15.2]} 39. Kf2 {[%clk 0:01:51.7]} 39... Nc4 {[%clk
0:00:14.7]} 40. h4 {[%clk 0:01:50.1]} 40... Kd6 {[%clk 0:00:13.5]} 41. h5 {[%clk
0:01:49.9]} 41... Ke7 {[%clk 0:00:13.5]} 42. h6 {[%clk 0:01:49.6]} 42... Kf6
{[%clk 0:00:13.8]} 43. Ke2 {[%clk 0:01:48.1]} 43... Nd6 {[%clk 0:00:13.4]} 44.
Ke3 {[%clk 0:01:45.8]} 44... Ke5 {[%clk 0:00:08.8]} 45. h7 {[%clk 0:01:40]}
45... Nf7 {[%clk 0:00:08.1]} 46. Bg6 {[%clk 0:01:39.5]} 46... Nh8 {[%clk
0:00:07.7]} 47. Bd3 {[%clk 0:01:38.7]} 47... a5 {[%clk 0:00:06.3]} 48. Bc4
{[%clk 0:01:37.2]} 48... Ng6 {[%clk 0:00:05.9]} 49. Bf7 {[%clk 0:01:36.7]} 49...
Nh8 {[%clk 0:00:05.6]} 50. Be8 {[%clk 0:01:37.1]} 50... Kf6 {[%clk 0:00:03.9]}
51. Kd4 {[%clk 0:01:36.8]} 51... Ke7 {[%clk 0:00:03.8]} 52. Bh5 {[%clk
0:01:35.3]} 52... Kd6 {[%clk 0:00:04.2]} 53. Kc4 {[%clk 0:01:35.3]} 53... Kc6
{[%clk 0:00:04.4]} 54. a4 {[%clk 0:01:35.3]} 54... Kd6 {[%clk 0:00:03.4]} 55.
Kb5 {[%clk 0:01:35.1]} 55... Kc7 {[%clk 0:00:03.6]} 56. Be8 {[%clk 0:01:32.3]}
56... Kb7 {[%clk 0:00:03]} 57. Bc6+ {[%clk 0:01:31]} 57... Kc7 {[%clk
0:00:03.2]} 58. Be4 {[%clk 0:01:30.1]} 58... Nf7 {[%clk 0:00:03]} 59. Ka6 {[%clk
0:01:27.7]} 59... Nh8 {[%clk 0:00:02.2]} 60. Bf3 {[%clk 0:01:25.3]} 60... Nf7
{[%clk 0:00:02.4]} 61. Bh5 {[%clk 0:01:25.1]} 61... Nh8 {[%clk 0:00:02.5]} 62.
Be8 {[%clk 0:01:24.8]} 1-0

[Event "*** Titled Tuesday Blitz"]
[Site "Chess.com"]
[Date "2020.04.28"]
[Round "4"]
[White "VerdeNotte"]
[Black "Tayson_7"]
[Result "1-0"]
[WhiteElo "2817"]
[BlackElo "2642"]
[TimeControl "180+1"]
[EndTime "10:40:46 PDT"]
[Termination "VerdeNotte won by resignation"]

1. e4 {[%clk 0:03:00.9]} 1... e5 {[%clk 0:02:59.6]} 2. Nf3 {[%clk 0:03:00.1]}
2... Nc6 {[%clk 0:03:00.2]} 3. d4 {[%clk 0:03:00.5]} 3... exd4 {[%clk
0:02:57.6]} 4. Nxd4 {[%clk 0:03:01.4]} 4... Nf6 {[%clk 0:02:57.6]} 5. Nxc6
{[%clk 0:03:00.2]} 5... bxc6 {[%clk 0:02:58.5]} 6. e5 {[%clk 0:03:00.3]} 6...
Qe7 {[%clk 0:02:58.5]} 7. Qe2 {[%clk 0:03:00.2]} 7... Nd5 {[%clk 0:02:59.1]} 8.
c4 {[%clk 0:03:00.3]} 8... Nb6 {[%clk 0:02:58.7]} 9. Nc3 {[%clk 0:02:59.7]} 9...
g6 {[%clk 0:02:53.9]} 10. Ne4 {[%clk 0:02:51.7]} 10... Bg7 {[%clk 0:02:45.2]}
11. Nf6+ {[%clk 0:02:44.3]} 11... Bxf6 {[%clk 0:02:43.5]} 12. exf6 {[%clk
0:02:45.2]} 12... Qxe2+ {[%clk 0:02:43.7]} 13. Bxe2 {[%clk 0:02:46.1]} 13... d6
{[%clk 0:02:37.3]} 14. b3 {[%clk 0:02:43.4]} 14... Bb7 {[%clk 0:02:27.2]} 15.
Bh6 {[%clk 0:02:34.8]} 15... c5 {[%clk 0:02:17.4]} 16. O-O {[%clk 0:02:21.7]}
16... O-O-O {[%clk 0:02:09]} 17. Rfe1 {[%clk 0:02:17.9]} 17... Rhe8 {[%clk
0:02:00.9]} 18. Bg4+ {[%clk 0:02:16.6]} 18... Kb8 {[%clk 0:02:00.9]} 19. Re7
{[%clk 0:02:00.5]} 19... Rxe7 {[%clk 0:01:59.6]} 20. fxe7 {[%clk 0:02:01.4]}
20... Re8 {[%clk 0:02:00.2]} 21. Re1 {[%clk 0:01:59.2]} 21... Bc8 {[%clk
0:01:48.3]} 22. Bf3 {[%clk 0:01:51.2]} 22... Bb7 {[%clk 0:01:47.5]} 23. Bd1
{[%clk 0:01:42.3]} 23... Kc8 {[%clk 0:01:47.4]} 24. Bg5 {[%clk 0:01:33.3]} 24...
f5 {[%clk 0:01:41.6]} 25. g4 {[%clk 0:01:31.7]} 25... Bc6 {[%clk 0:00:51]} 26.
gxf5 {[%clk 0:01:29.2]} 26... gxf5 {[%clk 0:00:51.9]} 27. Bh5 {[%clk 0:01:28.3]}
27... Kd7 {[%clk 0:00:28.8]} 28. f3 {[%clk 0:01:19.5]} 28... h6 {[%clk
0:00:19.3]} 29. Bh4 {[%clk 0:01:03]} 29... Nc8 {[%clk 0:00:14.4]} 30. Bxe8+
{[%clk 0:01:01.8]} 30... Kxe8 {[%clk 0:00:15.3]} 31. Kf2 {[%clk 0:01:02.4]}
31... Kf7 {[%clk 0:00:14.4]} 32. Kg3 {[%clk 0:00:58.3]} 32... Bd7 {[%clk
0:00:08.6]} 33. Kf4 {[%clk 0:00:57.6]} 33... Nb6 {[%clk 0:00:08.9]} 34. e8=Q+
{[%clk 0:00:51.5]} 34... Bxe8 {[%clk 0:00:08.9]} 35. Re7+ {[%clk 0:00:52.4]}
35... Kf8 {[%clk 0:00:09.3]} 36. Rxc7 {[%clk 0:00:51.5]} 36... Nd7 {[%clk
0:00:09.4]} 37. Rxa7 {[%clk 0:00:47]} 37... Ne5 {[%clk 0:00:08.5]} 38. Be7+
{[%clk 0:00:46.7]} 38... Kg8 {[%clk 0:00:08.8]} 39. Bxd6 {[%clk 0:00:45.5]}
39... Nd3+ {[%clk 0:00:09.1]} 40. Kxf5 {[%clk 0:00:45.2]} 40... Bc6 {[%clk
0:00:10]} 41. Kg6 {[%clk 0:00:41]} 41... Bxf3 {[%clk 0:00:08.2]} 42. Rg7+ {[%clk
0:00:33.9]} 42... Kh8 {[%clk 0:00:08.1]} 43. Rf7 {[%clk 0:00:32.3]} 43... Be4+
{[%clk 0:00:01.6]} 44. Kxh6 {[%clk 0:00:32.4]} 44... Bd5 {[%clk 0:00:01.8]} 45.
Rf8+ {[%clk 0:00:28.9]} 45... Bg8 {[%clk 0:00:02.7]} 46. a3 {[%clk 0:00:26.5]}
1-0